Workbook

Sheet Energy Saving Calculation
C3: System Information
C5: Cost of Electricity per kW | E5: 34 | G5: p/kWh
C7: Number of hours the FCUs & Chillers run in an operational day | E7: 8 | G7: hours
C9: Number of days the FCUs & Chillers run in an operational week | E9: 5 | G9: days
C11: Number of Weeks System runs in Cooling | E11: 30 | G11: weeks
C13: Number of Weeks System runs in Heating | E13: 20 | G13: weeks
C15: Saving in Chiller Running Costs
C17: The sum of FCU Total Cooling in the Caice proposal | E17: 600 | G17: kW
C19: The sum of FCU Total Cooling in the Client enquiry | E19: 665.060241 | G19: kW
C21: Chiller Coefficient of Performance | E21: 4
C23: Reduction in Chiller Load | E23: =(E19-E17)/E21 -> 16.26506024 | G23: kW
C25: Annual kWh saving for the Chiller, based upon Load Reduction | E25: =E23*E7*E9*E11 -> 19518.07229 | G25: kWh
C27: Annual Chiller Running Cost Saving with Caice Fan Coil Units | E27: =E5*E25/100 -> 6636.144578 | I27: =E27 -> 6636.144578
C29: Saving in Fan Coil Unit Running Costs
C31: Average Specific Fan Power (SFP) of Caice Proposal | E31: 0.23 | G31: W/l/s
C33: Total Fan Coil Unit Airflow of Caice Proposal | E33: 41800 | G33: l/s
C35: Caice Fan Coil Unit Total Airflow multiplied by SFP | E35: =E31*E33 -> 9614 | G35: W
C37: Average Specific Fan Power (SFP) of Client Enquiry | E37: 0.3 | G37: W/l/s
C39: Total Fan Coil Unit Airflow of Client Enquiry | E39: 41800 | G39: l/s
C41: Client Fan Coil Unit Total Airflow multiplied by SFP | E41: =E37*E39 -> 12540 | G41: W
C43: kW difference between Client Enquiry and Caice Proposal | E43: =(E41-E35)/1000 -> 2.926 | G43: kW
C45: Annual kW saving based upon Caice Fan Coil Unit SFP | E45: =E43*E7*E9*(E11+E13) -> 5852 | G45: kWh
C47: Annual FCU Running Cost Saving with Caice Fan Coil Units | E47: =E45*E5/100 -> 1989.68 | I47: =E47 -> 1989.68
C49: Saving in Pump Running Costs
C51: Total Pump Power for Client Enquiry | E51: 5771.614458 | G51: W
C53: Total Water Flow Rate of Client Enquiry | E53: 70.38554217 | G53: l/s
C55: Pump Power Required for Client Enquiry | E55: =E51/E53 -> 82 | G55: W/l/s
C57: Annual Pump Power for Client Enquiry | E57: =E51/1000*E$7*E$9*(E$11) -> 6925.937349 | G57: kWh
C59: Total Pump Power for Caice Proposal | E59: =E51/E53^3*E61^3 -> 4238.069825 | G59: W
C61: Total Water Flow Rate of Caice Proposal | E61: 63.5 | G61: l/s
C63: Pump Power Required for Caice Proposal | E63: =E59/E61 -> 66.74125709 | G63: W/l/s
C65: Annual Pump Power for Caice Proposal | E65: =E59/1000*E$7*E$9*(E$11) -> 5085.68379 | G65: kWh
C67: kW difference between Client Enquiry and Caice Proposal | E67: =(E51-E59)/1000 -> 1.533544633 | G67: kW
C69: Annual kW saving based upon Caice FCU Water Flow Rate | E69: =E57-E65 -> 1840.253559 | G69: kWh
C71: Annual FCU Running Cost Saving with Caice Fan Coil Units | E71: =E69*E5/100 -> 625.6862101 | I71: =E71 -> 625.6862101
C76: TOTAL ANNUAL SYSTEM COST SAVING | E76: =E71+E47+E27 -> 9251.510788 | I76: =E76 -> 9251.510788
